bitfinex/quotes_BTCUSD_20250326
["timestamp","ask_amount","ask_price","bid_price","bid_amount"]
[1742997846964,0.55512585,87287.0,87273.0,0.40141936]
[1742997847186,0.240655,87262.0,87258.0,0.40141936]
[1742997847389,0.01454085,87260.0,87253.0,0.0003388]
[1742997847793,0.01454085,87258.0,87253.0,0.0003388]
[1742997848020,0.01454085,87260.0,87253.0,0.0003388]
[1742997848722,0.01699379,87260.0,87253.0,0.00074975]
[1742997849141,0.31454085,87258.0,87253.0,0.00074975]
[1742997849342,0.01454085,87258.0,87257.0,0.229207]
[1742997849559,0.17674085,87258.0,87257.0,0.42576114]
[1742997849782,0.17674085,87258.0,87257.0,0.40141936]
[1742997850045,0.47674085,87258.0,87257.0,0.40141936]
[1742997851276,0.47674085,87258.0,87257.0,0.41041936]
[1742997851949,0.32600085,87258.0,87257.0,0.41041936]
[1742997852201,0.48796085,87258.0,87257.0,0.009]
[1742997852437,0.60721849,87258.0,87257.0,0.009]
[1742997852922,0.63221849,87258.0,87257.0,0.005]
[1742997853132,0.570675,87254.0,87253.0,0.00074975]
[1742997853342,0.80463838,87254.0,87253.0,0.00074975]
[1742997853554,0.69038074,87254.0,87253.0,0.00074975]
[1742997854021,0.85202074,87254.0,87253.0,0.00074975]
[1742997854429,0.41970574,87254.0,87253.0,0.00074975]
[1742997854628,0.58126574,87254.0,87253.0,0.00074975]
[1742997854868,0.59272574,87254.0,87253.0,0.00074975]
[1742997855576,0.58126574,87254.0,87253.0,0.00074975]
[1742997856072,0.63911235,87254.0,87253.0,0.00074975]
[1742997856462,0.60222179,87254.0,87253.0,0.00074975]
[1742997856689,0.61068179,87254.0,87253.0,0.00074975]
[1742997856925,0.61268179,87254.0,87253.0,0.00074975]
[1742997857469,0.61068179,87254.0,87253.0,0.00074975]
[1742997857896,0.43866179,87254.0,87253.0,0.00074975]
[1742997858067,0.12412094,87254.0,87253.0,0.00074975]
[1742997858282,0.12412094,87254.0,87253.0,0.41362911]
[1742997858283,0.01895605,87254.0,87253.0,0.41362911]
[1742997858512,0.01895605,87254.0,87253.0,0.51642675]
[1742997858889,0.01895605,87254.0,87253.0,0.40216911]
[1742997859488,0.01795605,87254.0,87253.0,0.40216911]
[1742997859791,0.3,87270.0,87253.0,0.40516911]
[1742997860020,0.1614,87271.0,87253.0,0.40516911]
[1742997860222,0.01454085,87268.0,87253.0,0.41116911]
[1742997860549,0.31454085,87259.0,87253.0,0.40216911]
[1742997860754,0.00245294,87258.0,87253.0,0.40816911]
[1742997860885,0.01454085,87258.0,87253.0,0.41416911]
[1742997861089,0.01454085,87256.0,87253.0,0.40216911]
[1742997861554,0.01454085,87256.0,87253.0,0.40516911]
[1742997861767,0.31454085,87254.0,87253.0,0.40216911]
[1742997862510,0.31454085,87254.0,87253.0,0.40416911]
[1742997863071,0.31454085,87254.0,87253.0,0.40216911]
[1742997863300,0.31454085,87254.0,87253.0,0.40516911]
[1742997864003,0.31454085,87254.0,87253.0,0.40916911]
[1742997864219,0.75202993,87254.0,87253.0,0.40916911]
[1742997864425,0.76352993,87254.0,87253.0,0.40916911]
[1742997865058,0.47526085,87254.0,87253.0,0.40916911]
[1742997865690,0.47526085,87254.0,87253.0,0.40616911]
[1742997866141,0.31454085,87254.0,87253.0,0.40616911]
[1742997866349,0.47498085,87254.0,87253.0,0.40216911]
[1742997866563,0.1604,87261.0,87260.0,0.01146]
[1742997866771,0.16044,87267.0,87254.0,0.0493]
[1742997866982,0.3,87266.0,87261.0,0.4078]
[1742997867394,0.16044,87267.0,87261.0,0.4078]
[1742997868035,0.16044,87267.0,87253.0,0.00774975]
[1742997868036,0.01454085,87258.0,87253.0,0.00774975]
[1742997868235,0.3,87266.0,87253.0,0.00774975]
[1742997868439,0.01454085,87265.0,87253.0,0.00774975]
[1742997868645,0.01454085,87265.0,87253.0,0.00374975]
[1742997868843,0.01454085,87263.0,87253.0,0.00374975]
[1742997869265,0.0012,87261.0,87253.0,0.00374975]
[1742997869476,0.01454085,87260.0,87253.0,0.00374975]
[1742997869673,0.01454085,87258.0,87253.0,0.00074975]
[1742997869883,0.01454085,87257.0,87253.0,0.00074975]
[1742997870299,0.55521585,87254.0,87253.0,0.00074975]
[1742997870879,0.55521585,87254.0,87253.0,0.00674975]
[1742997871093,0.011462,87238.0,87237.0,0.4078]
[1742997871441,0.47478085,87238.0,87237.0,0.4078]
[1742997871897,0.70403785,87238.0,87237.0,0.4078]
[1742997872208,0.47478085,87238.0,87237.0,0.4078]
[1742997873218,0.71549985,87238.0,87237.0,0.4078]
[1742997873639,0.70403785,87238.0,87237.0,0.4078]
[1742997874053,0.47478085,87238.0,87237.0,0.4108]
[1742997874287,0.70403785,87238.0,87237.0,0.4128]
[1742997874493,0.71549985,87238.0,87237.0,0.4128]
[1742997874700,0.71549985,87238.0,87237.0,0.002]
[1742997874922,0.82975749,87238.0,87237.0,0.002]
[1742997875126,0.82975749,87238.0,87237.0,0.004]
[1742997875323,0.83475749,87238.0,87237.0,0.0028]
[1742997876118,0.545745,87229.0,87228.0,0.00046231]
[1742997876344,0.71444585,87229.0,87228.0,0.00046231]
[1742997876548,0.71944585,87229.0,87228.0,0.00046231]
[1742997877366,0.73740691,87229.0,87228.0,0.00046231]
[1742997877576,0.76240691,87229.0,87228.0,0.00046231]
[1742997877821,2.24112691,87229.0,87228.0,0.00046231]
[1742997878077,0.005,87218.0,87208.0,0.000339]
[1742997878298,0.66793368,87218.0,87208.0,0.000339]
[1742997878518,0.74718074,87218.0,87208.0,0.000339]
[1742997878729,0.5458,87209.0,87208.0,0.000339]
[1742997878938,0.71922085,87209.0,87208.0,0.00046247]
[1742997879600,0.84422085,87209.0,87208.0,0.00046247]
[1742997879812,1.47139528,87209.0,87208.0,0.00046247]
[1742997880021,1.39064528,87209.0,87208.0,0.00046247]
[1742997880170,1.42740128,87209.0,87208.0,0.00046247]
[1742997880702,1.25980528,87209.0,87208.0,0.00046247]
[1742997880904,1.26280528,87209.0,87208.0,0.00046247]
[1742997881150,1.26180528,87209.0,87208.0,0.00046247]
[1742997881555,1.18921727,87209.0,87208.0,0.00046247]
[1742997881853,1.18978986,87209.0,87208.0,0.00046247]
[1742997882059,1.20777228,87209.0,87208.0,0.00046247]
[1742997882231,0.81564285,87209.0,87208.0,0.00046247]
[1742997882438,0.91235785,87209.0,87208.0,0.00046247]
[1742997882600,1.01087194,87209.0,87208.0,0.00046247]
[1742997882809,0.89939094,87209.0,87208.0,0.00046247]
[1742997883226,0.89439094,87209.0,87208.0,0.00046247]
[1742997883478,0.89107094,87209.0,87208.0,0.00046247]
[1742997883686,0.005,87209.0,87208.0,0.00046247]
[1742997883890,0.16957294,87209.0,87208.0,0.00046247]
[1742997884063,0.31145294,87209.0,87208.0,0.00046247]
[1742997884261,0.46216,87209.0,87208.0,0.00046247]
[1742997884469,0.47670085,87209.0,87208.0,0.00046247]
[1742997884664,0.56738144,87209.0,87208.0,0.00046247]
[1742997885224,0.46108,87209.0,87208.0,0.00046247]
[1742997885704,0.47562085,87209.0,87208.0,0.00046247]
[1742997885912,0.31754085,87209.0,87208.0,0.00046247]
[1742997886114,0.47538085,87209.0,87208.0,0.00046247]
[1742997886538,0.47530085,87209.0,87208.0,0.00046247]
[1742997886812,0.53398725,87209.0,87208.0,0.00046247]
[1742997887007,0.52498725,87209.0,87208.0,0.00046247]
[1742997887419,0.52698725,87209.0,87208.0,0.00046247]
[1742997888026,0.47410085,87209.0,87208.0,0.00046247]
[1742997888234,0.17402085,87209.0,87208.0,0.00046247]
[1742997888433,0.17202085,87209.0,87208.0,0.00046247]
[1742997888855,0.17194085,87209.0,87208.0,0.00146247]
[1742997889687,0.71519379,87209.0,87208.0,0.00146247]
[1742997889822,0.78949644,87209.0,87208.0,0.00046247]
[1742997890249,0.78949644,87209.0,87208.0,0.00146247]
[1742997890452,0.79049644,87209.0,87208.0,0.00146247]
[1742997891084,0.71274085,87209.0,87208.0,0.00146247]
[1742997891515,0.71274085,87209.0,87208.0,0.00046247]
[1742997892381,0.48276685,87209.0,87208.0,0.00046247]
[1742997892575,0.71210085,87209.0,87208.0,0.00046247]
[1742997892804,0.70063485,87209.0,87208.0,0.00046247]
[1742997893134,0.77728453,87209.0,87208.0,0.00046247]
[1742997893514,0.78875053,87209.0,87208.0,0.00046247]
[1742997893749,0.71410085,87209.0,87208.0,0.00046247]
[1742997894664,0.01654085,87209.0,87208.0,0.00046247]
[1742997894665,0.002,87209.0,87208.0,0.40826247]
[1742997894920,0.15884,87209.0,87208.0,0.40826247]
[1742997895191,0.15876,87209.0,87208.0,0.40826247]
[1742997895640,0.15876,87209.0,87208.0,0.40326247]
[1742997896360,0.15852,87209.0,87208.0,0.40326247]
[1742997896592,0.17106085,87209.0,87208.0,0.40326247]
[1742997897278,0.17106085,87209.0,87208.0,0.40426247]
[1742997897501,0.17106085,87209.0,87208.0,0.40326247]
[1742997898018,0.000339,87217.0,87211.0,0.011466]
[1742997898257,0.15612,87213.0,87210.0,0.22933]
[1742997898476,0.15612,87213.0,87209.0,0.229334]
[1742997898700,0.01454085,87212.0,87208.0,0.65006247]
[1742997899142,0.01454085,87212.0,87209.0,0.229333]
[1742997899360,0.01796042,87213.0,87210.0,0.229331]
[1742997899671,0.01796042,87213.0,87212.0,0.240792]
[1742997899889,0.01454085,87212.0,87211.0,0.229328]
[1742997900124,0.01454085,87212.0,87211.0,0.228328]
[1742997900362,0.01796042,87213.0,87212.0,0.240792]
[1742997900842,0.01454085,87212.0,87211.0,0.2611985]
[1742997901259,0.1554,87230.0,87219.0,0.40292347]
[1742997901409,0.01454085,87229.0,87219.0,0.40292347]
[1742997902454,0.01454085,87229.0,87225.0,0.22929]
[1742997902661,0.01454085,87229.0,87222.0,0.240762]
[1742997902948,0.01454085,87229.0,87220.0,0.63222747]
[1742997903436,0.01454085,87229.0,87226.0,0.011464]
[1742997903655,0.01454085,87229.0,87223.0,0.011464]
[1742997903869,0.15492,87240.0,87233.0,0.011463]
[1742997904071,0.15492,87240.0,87234.0,0.99848347]
[1742997904497,0.00245294,87239.0,87234.0,0.99848347]
[1742997904729,0.32600385,87236.0,87234.0,0.99848347]
[1742997904945,0.31454085,87227.0,87226.0,0.0214045]
[1742997905602,0.32600485,87227.0,87226.0,0.0214045]
[1742997905742,0.540758,87224.0,87223.0,0.005]
[1742997906159,0.3,87218.0,87212.0,0.40292347]
[1742997906359,0.01454085,87215.0,87212.0,0.40292347]
[1742997906592,0.22932,87214.0,87212.0,0.40292347]
[1742997906926,0.31454085,87213.0,87212.0,0.40292347]
[1742997907337,0.011466,87207.0,87201.0,0.59556]
[1742997907540,0.55535985,87202.0,87201.0,0.59556]
[1742997907847,0.31454085,87202.0,87201.0,0.59556]
[1742997908057,0.32600785,87202.0,87201.0,0.59556]
[1742997908271,0.31454085,87202.0,87201.0,0.59556]
[1742997908485,0.33250458,87202.0,87201.0,0.59556]
[1742997908684,0.38983514,87202.0,87201.0,0.59556]
[1742997909006,0.011467,87200.0,87198.0,0.0003388]
[1742997909230,0.48374079,87200.0,87198.0,0.0003388]
[1742997909438,0.48128785,87200.0,87198.0,0.0003388]
[1742997909677,0.59554549,87200.0,87198.0,0.0003388]
[1742997910535,0.59554549,87200.0,87199.0,0.004339]
[1742997910743,0.59554549,87200.0,87199.0,0.009339]
[1742997910966,0.59554549,87200.0,87199.0,0.000339]
[1742997911183,0.3,87200.0,87199.0,0.000339]
[1742997911396,0.302,87200.0,87199.0,0.000339]
[1742997911628,0.47142085,87200.0,87199.0,0.000339]
[1742997912371,0.48288785,87200.0,87199.0,0.000339]
[1742997912573,0.47142085,87200.0,87199.0,0.000339]
[1742997912804,0.3,87200.0,87199.0,0.000339]
[1742997913013,0.15476,87200.0,87199.0,0.000339]
[1742997913283,0.002,87200.0,87199.0,0.48436247]
[1742997913498,0.002,87200.0,87199.0,0.72519047]
[1742997913704,0.002,87200.0,87199.0,0.48436247]
[1742997913904,0.00012304,87213.0,87203.0,0.011467]
[1742997914107,0.00012304,87213.0,87203.0,0.229349]
[1742997914316,0.00012304,87213.0,87204.0,0.229346]
[1742997914520,0.00012304,87213.0,87203.0,0.229349]
[1742997914727,0.00012304,87213.0,87201.0,0.40292347]
[1742997914935,0.00012304,87213.0,87202.0,0.229351]
[1742997915162,0.00012304,87213.0,87201.0,0.63227647]
[1742997915384,0.00012304,87213.0,87203.0,0.229349]
[1742997915567,0.00012304,87213.0,87204.0,0.002]
[1742997915942,0.00012304,87213.0,87202.0,0.229351]
[1742997916343,0.00012304,87213.0,87203.0,0.229348]
[1742997916554,0.00012304,87213.0,87203.0,0.001]
[1742997916774,0.01454085,87212.0,87203.0,0.001]
[1742997917197,0.01454085,87210.0,87204.0,0.40292347]
[1742997917441,0.00012304,87213.0,87212.0,0.240792]
[1742997917662,0.00012304,87213.0,87212.0,0.885252]
[1742997917890,0.00012304,87213.0,87212.0,1.08130964]
[1742997918110,0.15408,87239.0,87223.0,0.240761]
[1742997918324,0.000339,87251.0,87223.0,0.240761]
[1742997918581,0.15412,87241.0,87223.0,0.371461]
[1742997918790,0.15412,87241.0,87236.0,0.011463]
[1742997918998,0.15424331,87241.0,87232.0,0.229271]
[1742997919127,0.15424331,87241.0,87232.0,0.240734]
[1742997919333,0.15424331,87241.0,87232.0,0.011463]
[1742997919538,0.000339,87251.0,87250.0,0.011461]
[1742997919742,0.000339,87251.0,87250.0,0.59556]
[1742997919957,0.000339,87251.0,87250.0,0.836247]
[1742997920162,0.000339,87251.0,87250.0,0.918047]
[1742997920364,0.01829004,87251.0,87250.0,1.03230464]
[1742997921164,0.15392,87271.0,87263.0,0.22919]
[1742997921369,0.0001693,87286.0,87282.0,0.011457]
[1742997921370,0.00058051,87286.0,87282.0,0.011457]
[1742997921571,0.00058051,87286.0,87283.0,0.99828016]
[1742997921775,0.00058051,87286.0,87283.0,1.23887416]
[1742997921970,0.00058051,87286.0,87283.0,1.22741816]
[1742997922183,0.00058051,87286.0,87284.0,0.40280016]
[1742997922543,0.00058051,87286.0,87285.0,0.11425764]
[1742997923252,0.00058051,87286.0,87284.0,0.40280016]
[1742997924402,0.00058051,87286.0,87284.0,0.40480016]
[1742997924616,0.00058051,87286.0,87285.0,0.001]
[1742997925100,0.00058051,87286.0,87284.0,0.40480016]
[1742997925734,0.00058051,87286.0,87284.0,0.40280016]
[1742997925938,0.00058051,87286.0,87285.0,0.40280016]
[1742997927142,0.00058051,87286.0,87285.0,0.40580016]
[1742997927745,0.46792136,87286.0,87285.0,0.40580016]
[1742997928164,0.46792136,87286.0,87285.0,0.40680016]
[1742997928545,0.00058051,87286.0,87285.0,0.40680016]
[1742997928779,0.00058051,87286.0,87285.0,0.50817388]
[1742997928984,0.01512136,87286.0,87285.0,0.40280016]
[1742997929411,0.00058051,87286.0,87285.0,0.40280016]
[1742997929834,0.1996,87288.0,87286.0,0.40221965]
[1742997929835,0.01454085,87287.0,87286.0,0.40221965]
[1742997930021,0.01454085,87287.0,87286.0,0.50198961]
[1742997930889,0.01454085,87287.0,87286.0,0.40221965]
[1742997931305,0.01454085,87287.0,87286.0,0.40421965]
[1742997931506,0.02770356,87287.0,87286.0,0.40421965]
[1742997931708,0.01454085,87287.0,87286.0,0.40721965]
[1742997932043,0.48072979,87287.0,87286.0,0.40721965]
[1742997932249,0.32880922,87287.0,87286.0,0.40721965]
[1742997932473,0.48124922,87287.0,87286.0,0.40721965]
[1742997932857,0.48124922,87287.0,87286.0,0.40421965]
[1742997933284,0.02880922,87287.0,87286.0,0.40421965]
[1742997933485,0.18124922,87287.0,87286.0,0.40421965]
[1742997934095,0.18124922,87287.0,87286.0,0.40221965]
[1742997934816,0.18124922,87287.0,87286.0,0.40321965]
[1742997935134,0.18124922,87287.0,87286.0,0.40521965]
[1742997935379,0.19972326,87288.0,87287.0,0.37341043]
[1742997935583,0.19972326,87288.0,87287.0,0.51206643]
[1742997936326,0.12930612,87288.0,87287.0,1.74432407]
[1742997936577,0.0001693,87305.0,87304.0,0.240538]
[1742997936785,0.0001693,87312.0,87311.0,0.240519]
[1742997937190,0.0001693,87312.0,87311.0,0.27124941]
[1742997937392,0.0001693,87312.0,87311.0,0.27165061]
[1742997937598,0.0001693,87312.0,87311.0,0.34058897]
[1742997938224,0.0003392,87339.0,87316.0,0.240505]
[1742997938436,0.0003392,87339.0,87337.0,0.228997]
[1742997938643,0.00046239,87339.0,87338.0,0.011449]
[1742997938853,0.00046239,87339.0,87338.0,0.05322936]
[1742997939067,0.00046239,87339.0,87338.0,0.00228968]
[1742997939285,0.00046239,87339.0,87338.0,0.01373868]
[1742997940816,0.00046239,87339.0,87337.0,0.002]
[1742997941019,0.00046239,87339.0,87334.0,0.229003]
[1742997941223,0.00046239,87339.0,87333.0,0.01145]
[1742997941224,0.00046239,87339.0,87338.0,0.012449]
[1742997941424,0.00046239,87339.0,87338.0,0.09020153]
[1742997941653,0.00046239,87339.0,87338.0,0.08920153]
[1742997942274,0.00046239,87339.0,87338.0,0.00528952]
[1742997942482,0.00046239,87339.0,87338.0,0.003]
[1742997942681,0.00046239,87339.0,87338.0,0.01373855]
[1742997942882,0.00046239,87339.0,87338.0,0.01773855]
[1742997943697,0.15092,87355.0,87350.0,0.33640719]
[1742997943907,0.15092,87355.0,87351.0,0.59484]
[1742997944318,0.01231319,87354.0,87351.0,0.59484]
[1742997944525,0.15088,87354.0,87352.0,0.33640719]
[1742997944725,0.0003394,87359.0,87352.0,0.42610328]
[1742997944926,0.15084,87355.0,87352.0,0.42610328]
[1742997945101,0.0003394,87359.0,87352.0,0.42610328]
[1742997945605,0.0001694,87355.0,87352.0,0.33640719]
[1742997946217,0.01454085,87353.0,87352.0,0.33840719]
[1742997946599,0.0001694,87355.0,87352.0,0.33840719]
[1742997947003,0.01454085,87353.0,87352.0,0.33840719]
[1742997947348,0.0001694,87355.0,87352.0,0.33640719]
[1742997947603,0.16486085,87353.0,87352.0,0.33640719]
[1742997947807,0.16486085,87353.0,87352.0,0.33740719]
[1742997948080,0.16486085,87353.0,87352.0,0.33640719]
[1742997948285,0.16486085,87353.0,87352.0,0.33840719]
[1742997948864,0.16486085,87353.0,87352.0,0.33940719]
[1742997949063,0.1827925,87353.0,87352.0,0.33940719]
[1742997949950,0.4827925,87353.0,87352.0,0.33940719]
[1742997950391,0.49510591,87353.0,87352.0,0.33940719]
[1742997950841,0.34478591,87353.0,87352.0,0.33940719]
[1742997951012,0.49450591,87353.0,87352.0,0.33940719]
[1742997952175,0.35623291,87353.0,87352.0,0.33940719]
[1742997952382,0.73466891,87353.0,87352.0,0.33940719]
[1742997952589,0.8781949,87353.0,87352.0,0.003]
[1742997952738,0.7287149,87353.0,87352.0,0.003]
[1742997952921,0.8781549,87353.0,87352.0,0.003]
[1742997953124,0.76389726,87353.0,87352.0,0.002]
[1742997953741,0.76389726,87353.0,87334.0,0.33640719]
[1742997953742,0.3,87341.0,87334.0,0.33640719]
[1742997953945,0.01454085,87340.0,87334.0,0.33640719]
[1742997954169,0.31454085,87338.0,87334.0,0.33640719]
[1742997954399,0.31454085,87336.0,87334.0,0.33640719]
[1742997954693,0.01224075,87335.0,87334.0,0.33640719]
[1742997954901,0.0267816,87335.0,87334.0,0.33640719]
[1742997955797,0.2672346,87335.0,87334.0,0.33640719]
[1742997956000,0.5672346,87335.0,87334.0,0.33640719]
[1742997956432,0.5672346,87335.0,87334.0,0.33740719]
[1742997956768,0.567404,87335.0,87334.0,0.33740719]
[1742997957243,0.567404,87335.0,87334.0,0.33940719]
[1742997957462,0.567404,87335.0,87334.0,0.33740719]
[1742997957672,0.567404,87335.0,87334.0,0.33840719]
[1742997958275,0.567404,87335.0,87334.0,0.33740719]
[1742997958710,0.76216164,87335.0,87334.0,0.33740719]
[1742997959262,0.76216164,87335.0,87334.0,0.001]
[1742997959487,0.81176164,87335.0,87334.0,0.001]
[1742997959984,0.96044164,87335.0,87334.0,0.001]
[1742997960215,0.846144,87335.0,87334.0,0.001]
[1742997960690,0.01454085,87315.0,87301.0,0.33640719]
[1742997960934,0.31454085,87313.0,87302.0,0.33640719]
[1742997961127,0.16064951,87314.0,87302.0,0.33640719]
[1742997961128,0.01216951,87314.0,87312.0,0.011453]
[1742997961278,0.01216951,87314.0,87309.0,0.011453]
[1742997961279,0.0001694,87335.0,87316.0,0.32423768]
[1742997961486,0.14856,87334.0,87317.0,0.37067729]
[1742997961681,0.14856,87334.0,87317.0,0.32423768]
[1742997962111,0.3,87333.0,87317.0,0.32423768]
[1742997962313,0.0011694,87335.0,87318.0,0.01374229]
[1742997962516,0.0001694,87335.0,87319.0,0.32423768]
[1742997962672,0.1486,87334.0,87320.0,0.01374192]
[1742997962913,0.1496,87334.0,87320.0,0.24278192]
[1742997963110,0.001,87334.0,87321.0,0.11425764]
[1742997963325,0.0113408,87368.0,87335.0,0.3]
[1742997963531,0.0113408,87368.0,87346.0,0.011448]
[1742997963734,0.0113408,87368.0,87339.0,0.011449]
[1742997963932,0.0113408,87368.0,87344.0,0.228979]
[1742997964144,0.0113408,87368.0,87347.0,0.01134]
[1742997964389,0.0113408,87368.0,87347.0,0.240309]
[1742997964601,0.0113408,87368.0,87349.0,0.011448]
[1742997964807,0.14912,87360.0,87347.0,0.01134]
[1742997964981,0.01488025,87359.0,87347.0,0.01134]
[1742997965590,0.01488025,87359.0,87348.0,0.02540544]
[1742997965786,0.01488025,87359.0,87347.0,0.01634]
[1742997965958,0.01471025,87355.0,87349.0,0.011448]
[1742997966199,0.0001694,87355.0,87354.0,0.228953]
[1742997966404,0.0113408,87368.0,87363.0,0.32372888]
[1742997966405,0.14892,87365.0,87363.0,0.32372888]
[1742997966605,0.01454085,87367.0,87363.0,0.32372888]
[1742997967225,0.01027246,87366.0,87363.0,0.32372888]
[1742997967431,0.01027246,87366.0,87364.0,0.05526709]
[1742997967632,0.01454085,87367.0,87364.0,0.05526709]
[1742997967846,0.01146397,87368.0,87364.0,0.05526709]
[1742997967847,0.02481331,87365.0,87364.0,0.05526709]
[1742997968445,0.01454085,87364.0,87363.0,0.32372888]
[1742997968649,0.01454085,87367.0,87363.0,0.32372888]
[1742997968845,0.01454085,87367.0,87363.0,0.32772888]
[1742997969136,0.01444363,87367.0,87363.0,0.32772888]
[1742997969337,0.01444363,87367.0,87364.0,0.03277289]
[1742997969470,0.01444363,87367.0,87365.0,0.228924]
[1742997969673,0.01444363,87367.0,87364.0,0.26169689]
[1742997969884,0.01444363,87367.0,87364.0,0.03277289]
[1742997970718,0.01444363,87367.0,87364.0,0.04477289]
[1742997970909,0.01444363,87367.0,87366.0,0.011446]
[1742997971052,0.01444363,87367.0,87365.0,0.05619891]
[1742997971265,0.01444363,87367.0,87364.0,0.006]
[1742997971471,0.01444363,87367.0,87364.0,0.012]
[1742997971895,0.01444363,87367.0,87364.0,0.006]
[1742997972068,0.01444363,87367.0,87366.0,0.006]
[1742997972476,0.01444363,87367.0,87366.0,0.234922]
[1742997972757,0.01444363,87367.0,87366.0,0.012]
[1742997973370,0.01444363,87367.0,87366.0,0.10623849]
[1742997973587,0.01444363,87367.0,87366.0,0.006]
[1742997973765,0.01444363,87367.0,87366.0,0.017446]
[1742997974325,0.01444363,87367.0,87366.0,0.023446]
[1742997974533,0.01444363,87367.0,87366.0,0.012]
[1742997974738,0.02477176,87367.0,87366.0,0.012]
[1742997975892,0.02477176,87367.0,87366.0,0.33572888]
[1742997976287,0.02477176,87367.0,87366.0,0.93020888]
[1742997976671,0.01444363,87367.0,87366.0,0.93020888]
[1742997977678,0.01444363,87367.0,87366.0,1.02322977]
[1742997978131,0.01444363,87367.0,87366.0,0.93020888]
[1742997978374,0.03237171,87367.0,87366.0,0.93020888]
[1742997978581,0.33237171,87367.0,87366.0,0.93020888]
[1742997978841,0.34277467,87367.0,87366.0,0.93020888]
[1742997979247,0.58313867,87367.0,87366.0,0.33572888]
[1742997979456,0.69739631,87367.0,87366.0,0.32972888]
[1742997979652,0.58313867,87367.0,87366.0,0.32972888]
[1742997979945,0.73093867,87367.0,87366.0,0.33372888]
[1742997980241,0.73093867,87367.0,87366.0,0.004]
[1742997980364,0.01454085,87348.0,87343.0,0.32372888]
[1742997980570,0.01454085,87346.0,87343.0,0.32372888]
[1742997981176,0.03247398,87346.0,87343.0,0.32372888]
[1742997981387,0.01454085,87344.0,87343.0,0.32372888]
[1742997981838,0.00245294,87344.0,87343.0,0.32372888]
[1742997982042,0.01030737,87344.0,87343.0,0.32372888]
[1742997982243,0.17268822,87344.0,87343.0,0.32372888]
[1742997982649,0.02484822,87344.0,87343.0,0.32372888]
[1742997982855,0.17264822,87344.0,87343.0,0.32372888]
[1742997983054,0.16234085,87344.0,87343.0,0.32772888]
[1742997983295,0.16234085,87344.0,87343.0,0.32372888]
[1742997983471,0.16218085,87344.0,87343.0,0.32672888]
[1742997983684,0.16218085,87344.0,87343.0,0.33072888]
[1742997984258,0.16463379,87344.0,87343.0,0.33072888]
[1742997984466,0.16218085,87344.0,87343.0,0.33072888]
[1742997984659,0.02485321,87344.0,87343.0,0.33072888]
[1742997984971,0.0792392,87375.0,87344.0,0.011448]
[1742997985183,0.31146397,87368.0,87343.0,0.33072888]
[1742997985449,0.3,87365.0,87343.0,0.33072888]
[1742997985659,0.00245294,87364.0,87343.0,0.33072888]
[1742997985862,0.00245294,87364.0,87344.0,0.11425764]
[1742997985863,0.31454085,87363.0,87344.0,0.11425764]
[1742997986042,0.32476684,87363.0,87343.0,0.32772888]
[1742997986250,0.31454085,87361.0,87343.0,0.32772888]
[1742997986458,0.00245294,87360.0,87343.0,0.32772888]
[1742997986660,0.01454085,87359.0,87343.0,0.32372888]
[1742997986864,0.01022599,87359.0,87343.0,0.32372888]
[1742997987594,0.01267893,87359.0,87343.0,0.32372888]
[1742997987747,0.3,87353.0,87343.0,0.32472888]
[1742997987951,0.01454085,87352.0,87343.0,0.32472888]
[1742997988164,0.02307575,87352.0,87343.0,0.32372888]
[1742997988359,0.02307575,87352.0,87343.0,0.32572888]
[1742997988797,0.32598885,87350.0,87343.0,0.32372888]
[1742997988989,0.31454085,87348.0,87343.0,0.32472888]
[1742997989208,0.31454085,87348.0,87343.0,0.32872888]
[1742997989395,0.00852489,87347.0,87343.0,0.32772888]
[1742997989752,0.00852489,87347.0,87343.0,0.33072888]
[1742997990159,0.00852489,87347.0,87343.0,0.32772888]
[1742997990380,0.005,87454.0,87399.0,0.240276]
[1742997990579,0.00245294,87424.0,87399.0,0.92972988]
[1742997991199,0.002,87409.0,87399.0,0.91828888]
[1742997992012,0.00181185,87400.0,87399.0,0.91828888]
[1742997992410,0.0163527,87400.0,87399.0,0.91828888]
[1742997993277,0.0163527,87400.0,87399.0,0.92428888]
[1742997993492,0.0277937,87400.0,87399.0,0.32972888]
[1742997993862,0.40887846,87400.0,87399.0,0.012]
[1742997994444,0.3163527,87400.0,87399.0,0.012]
[1742997994648,0.3165219,87400.0,87399.0,0.006]
[1742997994850,0.0165219,87400.0,87399.0,0.006]
[1742997995163,0.0165219,87400.0,87399.0,0.007]
[1742997995352,0.01454085,87399.0,87379.0,0.6921]
[1742997995556,0.01454085,87397.0,87380.0,0.4078]
[1742997995758,0.01454085,87395.0,87381.0,0.4078]
[1742997996016,0.31454085,87391.0,87382.0,0.4078]
[1742997996226,0.01454085,87386.0,87382.0,0.4078]
[1742997996471,0.01454085,87386.0,87383.0,0.4078]
[1742997996690,0.3,87393.0,87383.0,0.4078]
[1742997996907,0.01454085,87392.0,87383.0,0.4078]
[1742997997060,0.240307,87389.0,87383.0,0.4078]
[1742997997395,0.32068453,87388.0,87383.0,0.4078]
[1742997997735,0.32068453,87388.0,87384.0,0.4078]
[1742997998144,0.02068453,87388.0,87384.0,0.4078]
[1742997998664,0.31454085,87386.0,87384.0,0.4078]
[1742997999225,0.02068453,87385.0,87384.0,0.4078]
[1742997999670,0.46868453,87385.0,87384.0,0.4088]
[1742997999887,0.00614368,87385.0,87384.0,0.4088]
[1742998000093,0.02406873,87385.0,87384.0,0.4078]
[1742998000398,0.3,87395.0,87384.0,0.4108]
[1742998000640,0.31454085,87393.0,87384.0,0.4088]
[1742998000851,0.31454085,87393.0,87384.0,0.4108]
[1742998000852,0.011443,87388.0,87384.0,0.4108]
[1742998001053,0.31454085,87389.0,87384.0,0.4108]
[1742998001272,0.011443,87385.0,87384.0,0.4108]
[1742998001470,0.02598385,87385.0,87384.0,0.003]
[1742998001684,0.03356501,87385.0,87384.0,0.001]
[1742998002033,0.03356501,87385.0,87384.0,0.002]
[1742998002235,0.44782265,87385.0,87384.0,0.002]
[1742998002482,0.44536971,87385.0,87384.0,0.001]
[1742998003026,0.47927207,87385.0,87384.0,0.003]
[1742998003436,0.01454085,87369.0,87366.0,0.0003384]
[1742998003618,0.32598585,87367.0,87366.0,0.0003384]
[1742998003816,0.47442585,87367.0,87366.0,0.0003384]
[1742998004066,0.59376269,87367.0,87366.0,0.0003384]
[1742998004270,0.47950505,87367.0,87366.0,0.0003384]
[1742998005023,0.47950505,87367.0,87366.0,0.0013384]
[1742998006330,0.47950505,87367.0,87366.0,0.0003384]
[1742998006539,0.48050505,87367.0,87366.0,0.0003384]
[1742998006717,0.59476269,87367.0,87366.0,0.0003384]